bitfinex/quotes_SOLUSD_20251013
["timestamp","ask_amount","ask_price","bid_price","bid_amount"]
[1760344831926,0.10950803,198.33,198.3,10.87647521]
[1760344832331,0.67,198.41,198.31,0.69]
[1760344832534,1e-08,198.35,198.33,20.8]
[1760344832748,1e-08,198.35,198.34,0.69]
[1760344833841,1e-08,198.35,198.34,5.73184733]
[1760344835135,1e-08,198.35,198.34,5.04184733]
[1760344836143,1e-08,198.35,198.34,5.73184733]
[1760344837060,1e-08,198.35,198.34,220.23184733]
[1760344837263,1e-08,198.36,198.34,220.23184733]
[1760344837463,1e-08,198.36,198.35,0.69]
[1760344838145,1e-08,198.36,198.35,5.73159314]
[1760344838347,0.10792631,198.38,198.35,18.33557599]
[1760344838561,0.10792631,198.38,198.36,0.69]
[1760344838857,0.10792631,198.38,198.37,0.69]
[1760344839245,1e-08,198.39,198.37,166.46647521]
[1760344839452,1e-08,198.39,198.38,0.69]
[1760344840160,1e-08,198.39,198.38,5.73083072]
[1760344840558,1e-08,198.39,198.38,5.04083072]
[1760344840865,1e-08,198.39,198.38,5.73083072]
[1760344842660,0.20560386,198.42,198.38,18.33290754]
[1760344842965,0.20560386,198.42,198.39,0.69]
[1760344843159,0.20560386,198.42,198.4,0.69]
[1760344844250,0.20560386,198.42,198.41,20.8]
[1760344844451,0.20560386,198.42,198.41,25.84006854]
[1760344848548,1e-08,198.42,198.41,25.84006854]
[1760344848747,1e-08,198.43,198.41,160.61006854]
[1760344848943,1e-08,198.43,198.42,0.67]
[1760344849649,1e-08,198.44,198.42,0.67]
[1760344849943,1e-08,198.44,198.42,215.17]
[1760344850465,1e-08,198.44,198.42,214.5]
[1760344850651,1e-08,198.44,198.43,5.03956055]
[1760344851647,1e-08,198.44,198.43,5.70956055]
[1760344853575,0.1026767,198.44,198.43,5.70956055]
[1760344853773,1e-08,198.44,198.43,231.08603576]
[1760344853969,1e-08,198.47,198.44,10.87647521]
[1760344854175,1e-08,198.47,198.44,226.04647521]
[1760344854468,1e-08,198.47,198.45,0.67]
[1760344854972,1e-08,198.47,198.46,0.67]
[1760344855666,1e-08,198.47,198.46,5.70879875]
[1760344856061,1e-08,198.47,198.46,5.03879875]
[1760344857567,1e-08,198.47,198.46,5.70879875]
[1760344859772,1e-08,198.47,198.44,11.54647521]
[1760344859976,1e-08,198.47,198.44,10.87647521]
[1760344860185,2.53861035,198.45,198.37,6.11]
[1760344860390,0.7,198.45,198.38,0.67]
[1760344861077,1e-08,198.47,198.4,20.8]
[1760344861582,1e-08,198.47,198.41,0.67]
[1760344861882,1e-08,198.47,198.42,17.63935086]
[1760344862261,1e-08,198.47,198.43,0.67]
[1760344862461,1e-08,198.47,198.42,17.63935086]
[1760344862462,0.7,198.46,198.42,17.63935086]
[1760344862960,1e-08,198.47,198.42,17.63935086]
[1760344862961,1e-08,198.47,198.42,18.30935086]
[1760344863160,0.70000001,198.47,198.42,18.30935086]
[1760344864368,2.53861036,198.47,198.42,17.63935086]
[1760344864560,0.7,198.46,198.42,17.63935086]
[1760344864893,3.23861035,198.45,198.42,5.03981453]
[1760344865062,3.23861035,198.44,198.42,5.03981453]
[1760344865261,0.7,198.46,198.42,5.03981453]
[1760344865468,0.7,198.45,198.42,5.03981453]
[1760344866162,3.23861035,198.45,198.41,12.59998121]
[1760344866357,2.53861035,198.44,198.41,12.59998121]
[1760344867672,3.23861035,198.43,198.39,17.64201824]
[1760344867871,3.23861035,198.43,198.39,98.04201824]
[1760344869665,2.53861035,198.43,198.39,98.71201824]
[1760344869867,1e-08,198.47,198.4,0.67]
[1760344870177,1e-08,198.47,198.4,81.07]
[1760344870686,1e-08,198.47,198.41,0.67]
[1760344870877,2.53861036,198.47,198.41,0.67]
[1760344871076,1e-08,198.47,198.41,0.67]
[1760344871278,2.53861036,198.47,198.41,0.67]
[1760344871475,2.53861036,198.47,198.42,17.63935086]
[1760344871679,2.53861036,198.47,198.42,18.30935086]
[1760344872190,2.53861035,198.45,198.42,17.63935086]
[1760344872485,2.53861035,198.43,198.42,5.03981453]
[1760344872674,0.7,198.44,198.43,77.86138965]
[1760344873069,1e-08,198.47,198.43,77.86138965]
[1760344873070,0.7,198.46,198.43,77.86138965]
[1760344873370,0.7,198.45,198.43,82.90079796]
[1760344873575,0.10526333,198.44,198.43,82.90079796]
[1760344873776,3.34387368,198.44,198.43,77.86138965]
[1760344875769,2.64387368,198.44,198.43,77.86138965]
[1760344877488,3.36387368,198.44,198.43,77.86138965]
[1760344878067,0.10526333,198.44,198.43,77.86138965]
[1760344878389,0.10526333,198.44,198.43,82.9009502]
[1760344879383,2.64387368,198.44,198.43,77.86138965]
[1760344880471,2.64387368,198.44,198.43,82.9009502]
[1760344880680,0.10526333,198.44,198.43,82.9009502]
[1760344880968,2.64387368,198.44,198.43,82.9009502]
[1760344881168,2.64387368,198.44,198.43,77.86138965]
[1760344881387,3.36387368,198.44,198.43,77.86138965]
[1760344882292,0.10526333,198.44,198.43,78.54138965]
[1760344882597,0.10526333,198.44,198.43,82.9009502]
[1760344884077,2.64387368,198.44,198.43,82.9009502]
[1760344884878,2.64387368,198.44,198.41,17.64015401]
[1760344885083,2.64387368,198.44,198.41,18.32015401]
[1760344886301,2.64387368,198.44,198.42,0.68]
[1760344887199,2.64387368,198.44,198.43,5.03956055]
[1760344889002,2.64387368,198.44,198.37,25.2043736]
[1760344889205,2.64387368,198.44,198.41,0.68]
[1760344889402,2.64387368,198.44,198.42,0.68]
[1760344889588,2.64387368,198.44,198.43,0.68]
[1760344889980,0.10526333,198.44,198.43,0.68]
[1760344890805,0.09075055,198.46,198.43,0.68]
[1760344891011,0.10394425,198.47,198.44,17.63757306]
[1760344891191,0.10394425,198.47,198.45,0.68]
[1760344891394,1e-08,198.48,198.45,0.68]
[1760344893207,1e-08,198.48,198.46,5.03879875]
[1760344893505,0.1026096,198.51,198.46,42.82978937]
[1760344893686,0.09638298,198.5,198.47,0.68]
[1760344893890,1e-08,198.51,198.49,20.8]
[1760344894211,1e-08,198.53,198.5,0.68]
[1760344895205,1e-08,198.53,198.51,5.03752959]
[1760344895408,1.0,198.6,198.54,20.8]
[1760344895610,1.0,198.6,198.55,0.68]
[1760344896620,1.0,198.6,198.56,17.62691376]
[1760344896922,1.0,198.6,198.57,0.68]
[1760344897116,1.0,198.6,198.58,0.68]
[1760344898614,1.0,198.6,198.56,17.62691376]
[1760344898615,1.0,198.6,198.59,0.68]
[1760344899195,1.0,198.6,198.57,0.68]
[1760344899396,1.0,198.6,198.58,0.68]
[1760344899791,2.53861035,198.59,198.56,12.59065269]
[1760344900094,1.0,198.6,198.56,12.59065269]
[1760344900289,2.53861035,198.59,198.56,13.27065269]
[1760344900507,3.53861035,198.6,198.56,13.27065269]
[1760344900695,1.0,198.6,198.57,0.68]
[1760344900897,1.0,198.6,198.56,98.02691376]
[1760344901090,1.0,198.6,198.58,0.68]
[1760344901288,1.0,198.6,198.59,0.68]
[1760344902596,3.95905783,198.65,198.59,0.68]
[1760344902918,3.95905783,198.64,198.6,17.62336353]
[1760344903102,3.95905783,198.64,198.61,0.68]
[1760344903301,3.95905783,198.64,198.6,17.62336353]
[1760344903504,3.95905783,198.64,198.61,0.68]
[1760344903814,3.95905783,198.63,198.6,98.02336353]
[1760344905619,3.95905783,198.62,198.6,98.02336353]
[1760344906207,3.95905783,198.63,198.6,18.31336353]
[1760344906410,3.95905783,198.66,198.61,0.69]
[1760344906606,3.95905783,198.68,198.61,0.69]
[1760344907012,20.8,198.7,198.57,15.13966339]
[1760344907013,3.95905783,198.62,198.57,15.13966339]
[1760344907217,0.67,198.65,198.58,0.7]
[1760344907400,20.8,198.67,198.59,17.62425096]
[1760344907603,3.95905783,198.68,198.6,0.7]
[1760344907810,19.99999999,198.79,198.6,0.7]
[1760344907811,3.95905783,198.7,198.6,0.7]
[1760344908022,3.95905783,198.71,198.6,0.7]
[1760344908323,3.95905783,198.7,198.6,0.7]
[1760344909520,3.95905783,198.7,198.61,17.6224762]
[1760344909718,0.67,198.74,198.62,11.57647521]
[1760344909919,3.95905783,198.72,198.63,0.7]
[1760344910317,3.95905783,198.69,198.63,0.7]
[1760344910831,3.95905783,198.68,198.63,0.7]
[1760344911133,3.95905783,198.66,198.61,42.79744221]
[1760344911305,4.62905783,198.66,198.61,43.49744221]
[1760344911906,0.67,198.69,198.62,0.7]
[1760344912125,3.95905783,198.69,198.62,0.7]
[1760344913128,3.95905783,198.71,198.62,0.7]
[1760344913634,0.10904103,198.64,198.63,17.6207018]
[1760344913803,0.10904103,198.64,198.63,18.3207018]
[1760344914203,0.10904103,198.64,198.63,17.6207018]
[1760344915318,0.10904103,198.64,198.63,12.58621557]
[1760344917003,4.06809886,198.64,198.63,12.58621557]
[1760344918223,4.73809886,198.64,198.58,0.7]
[1760344918531,3.95905783,198.63,198.58,0.7]
[1760344918728,3.95905783,198.63,198.57,17.62602608]
[1760344918923,3.95905783,198.61,198.57,17.62602608]
[1760344919118,3.95905783,198.61,198.57,18.32602608]
[1760344919327,0.10904103,198.64,198.57,18.32602608]
[1760344919328,4.62905783,198.6,198.57,17.62602608]
[1760344919710,3.95905783,198.6,198.57,17.62602608]
[1760344920033,0.67,198.62,198.57,12.59001863]
[1760344920329,0.77904103,198.64,198.58,0.7]
[1760344920529,4.73809886,198.64,198.58,0.7]
[1760344920713,0.10904103,198.64,198.58,0.7]
[1760344922230,0.10904103,198.64,198.59,38.42425096]
[1760344922425,0.10904103,198.64,198.6,0.7]
[1760344922623,0.10904103,198.64,198.61,0.7]
[1760344922925,0.10904103,198.64,198.62,0.7]
[1760344923330,0.10904103,198.64,198.63,0.7]
[1760344924633,0.10904103,198.64,198.63,5.73448623]
[1760344925943,0.10555897,198.67,198.66,80.08938717]
[1760344926138,1e-08,198.67,198.66,214.18938717]
[1760344926437,1e-08,198.67,198.66,219.92311313]
[1760344927741,1e-08,198.68,198.66,219.92311313]
[1760344927918,1e-08,198.69,198.67,0.7]
[1760344928108,1e-08,198.69,198.67,214.88938717]
[1760344928314,0.09534574,198.71,198.67,214.88938717]
[1760344928315,1e-08,198.7,198.67,214.88938717]
[1760344928637,1e-08,198.72,198.7,20.8]
[1760344929015,1e-08,198.72,198.71,0.7]
[1760344929919,1e-08,198.72,198.71,5.73245936]
[1760344932025,1e-08,198.72,198.71,16.60893457]
[1760344932626,0.67,198.82,198.74,20.8]
[1760344932936,0.67,198.85,198.75,0.7]
[1760344933132,0.67,198.85,198.75,21.5]
[1760344933309,0.67,198.85,198.76,0.7]
[1760344933514,0.67,198.87,198.76,0.7]
[1760344933724,0.10937857,198.79,198.76,11.57647521]
[1760344934030,0.10126741,198.8,198.77,18.30829098]
[1760344934514,0.10126741,198.8,198.78,0.7]
[1760344934716,0.10126741,198.8,198.79,0.7]
[1760344935936,0.10126741,198.8,198.79,5.73043412]
[1760344936430,0.09209518,198.81,198.8,31.67647521]
[1760344936631,0.1,198.89,198.8,32.38647521]
[1760344936826,0.1,198.89,198.81,0.71]
[1760344937416,0.1,198.89,198.83,20.8]
[1760344937615,0.1,198.89,198.84,0.71]
[1760344938055,0.1,198.89,198.85,17.60120693]
[1760344938257,0.1,198.89,198.86,0.71]
[1760344938459,0.67,198.96,198.86,0.71]
[1760344938641,0.67,198.96,198.88,20.8]
[1760344938958,4.62905783,198.96,198.89,0.71]
[1760344939155,5.02462314,199.02,198.89,0.71]
[1760344939323,0.67,198.98,198.89,21.51]
[1760344939531,4.62905783,199.0,198.9,0.71]
[1760344940344,3.95905783,198.98,198.91,17.59589763]
[1760344940530,0.67,198.97,198.91,17.59589763]
[1760344940842,4.62905783,198.97,198.91,17.59589763]
[1760344941039,0.67,198.96,198.91,17.59589763]
[1760344941242,3.95905783,198.95,198.91,5.02739932]
[1760344941448,3.95905783,198.93,198.91,5.02739932]
[1760344941669,0.67,198.92,198.91,5.02739932]
[1760344941826,4.62905783,198.92,198.91,5.02739932]
[1760344942226,0.67,198.92,198.89,12.56938172]
[1760344942429,4.62905783,198.94,198.89,12.56938172]
[1760344942634,0.67,198.93,198.89,12.56938172]
[1760344945549,3.95905783,198.92,198.89,12.56938172]
[1760344945949,3.95905783,198.9,198.86,10.46841345]
[1760344946139,3.95905783,198.89,198.86,10.46841345]
[1760344946338,4.62905783,198.9,198.86,23.0400719]
[1760344946844,3.95905783,198.87,198.86,10.46841345]
[1760344947429,4.62905783,198.87,198.86,10.46841345]
[1760344947644,4.62905783,198.87,198.86,5.44]
[1760344950247,9.65746834,198.87,198.86,5.44]
[1760344950446,10.87647521,198.86,198.75,5.03144654]
[1760344950640,0.67,198.85,198.76,0.71]
[1760344950950,3.95905783,198.79,198.76,0.71]
[1760344951136,3.95905783,198.78,198.75,5.03144654]
[1760344951340,3.95905783,198.77,198.75,5.03144654]
[1760344951538,3.95905783,198.78,198.75,5.74144654]
[1760344952255,3.95905783,198.85,198.76,0.71]
[1760344952434,3.95905783,198.84,198.77,17.60829098]
[1760344952631,3.95905783,198.82,198.78,0.71]
[1760344953041,3.95905783,198.81,198.77,17.60829098]
[1760344953249,3.95905783,198.79,198.77,17.60829098]
[1760344953529,0.09420297,198.78,198.77,17.60829098]
[1760344954058,0.09420297,198.78,198.77,18.28829098]
[1760344954236,0.09931171,198.79,198.77,18.28829098]
[1760344954440,0.09931171,198.79,198.78,0.68]
[1760344956338,0.09931171,198.79,198.78,5.71068719]
[1760344957545,0.09931171,198.79,198.78,139.13068719]
[1760344957750,10.21974705,198.79,198.78,5.03068719]
[1760344957947,9.51974705,198.79,198.78,5.03068719]
[1760344958946,10.21974705,198.79,198.78,5.03068719]
[1760344959142,10.21974705,198.79,198.73,12.57966861]
[1760344959341,9.42043534,198.76,198.73,12.57966861]
[1760344959542,9.42043534,198.76,198.73,13.25966861]
[1760344959958,9.42043534,198.77,198.73,13.25966861]
[1760344960258,0.79931171,198.79,198.74,0.68]
[1760344960559,9.42043534,198.77,198.74,0.68]
[1760344960954,0.79931171,198.79,198.74,0.68]
[1760344961139,9.42043534,198.77,198.74,0.68]
[1760344961344,6.32539865,198.77,198.74,0.68]
[1760344961761,6.32539865,198.77,198.75,5.03144654]
[1760344962342,6.32539865,198.76,198.75,5.03144654]
[1760344963041,7.02539865,198.76,198.75,5.03144654]
[1760344963262,6.32539865,198.76,198.75,5.03144654]
[1760344963459,0.09931171,198.79,198.75,17.61006289]
[1760344963770,6.32539865,198.77,198.75,17.61006289]
[1760344963958,0.79931171,198.79,198.75,17.61006289]
[1760344963959,0.09931171,198.79,198.76,0.68]
[1760344964179,0.09931171,198.79,198.77,0.68]
[1760344964347,6.42471036,198.79,198.75,12.57861635]
[1760344964557,6.42471036,198.79,198.75,13.25861635]
[1760344965363,0.09931171,198.79,198.76,0.68]
[1760344965766,0.09931171,198.79,198.77,0.68]
[1760344965969,0.09931171,198.79,198.78,0.68]
[1760344967945,1e-08,198.79,198.78,5.71068719]
[1760344969662,1e-08,198.79,198.78,5.03068719]
[1760344970071,7.00539866,198.79,198.76,12.57798349]
[1760344970264,0.68000001,198.79,198.76,12.57798349]
[1760344970452,6.32539865,198.78,198.76,12.57798349]
[1760344970652,6.32539866,198.79,198.76,12.57798349]
[1760344970853,1e-08,198.79,198.76,12.57798349]
[1760344971264,6.32539866,198.79,198.76,12.57798349]
[1760344971680,1e-08,198.79,198.76,12.57798349]
[1760344971867,1e-08,198.79,198.77,0.71]
[1760344972069,1e-08,198.79,198.78,5.03068719]
[1760344972553,1e-08,198.79,198.78,5.74068719]
[1760344972955,1e-08,198.8,198.78,5.74068719]
[1760344973162,1e-08,198.8,198.79,11.58647521]
[1760344973355,0.09630271,198.82,198.79,11.58647521]
[1760344973673,0.10612794,198.8,198.79,11.58647521]
[1760344973870,0.10871795,198.81,198.79,11.58647521]
[1760344974076,0.10871795,198.81,198.8,5.74018108]
[1760344974367,0.10871795,198.81,198.8,5.03018108]
[1760344974748,7.1141166,198.81,198.75,12.57813719]
[1760344975062,6.32539865,198.78,198.75,12.57813719]
[1760344975472,6.32539865,198.78,198.75,13.28813719]
[1760344975663,6.32539865,198.79,198.75,13.28813719]
[1760344976154,6.32539865,198.79,198.75,18.31958373]
[1760344976358,6.32539865,198.77,198.75,5.03144654]
[1760344976586,7.00539865,198.76,198.75,5.03144654]
[1760344976879,7.00539865,198.76,198.58,20.19999999]
[1760344976880,7.00539865,198.76,198.69,12.58191986]
[1760344977084,6.32539865,198.71,198.69,12.58191986]
[1760344978191,6.32539865,198.71,198.66,17.61804086]
[1760344978483,6.32539865,198.7,198.66,17.61804086]
[1760344978879,6.32539865,198.69,198.66,17.61804086]
[1760344979585,6.32539865,198.69,198.66,13.2943149]
[1760344979782,6.32539865,198.69,198.66,12.5843149]
[1760344980482,6.32539865,198.7,198.66,13.2943149]
[1760344980976,6.32539865,198.69,198.66,12.5843149]
[1760344981477,6.32539865,198.67,198.64,5.03423278]
[1760344981690,20.8,198.74,198.61,5.0349932]
[1760344981691,6.32539865,198.65,198.61,5.0349932]
[1760344981863,6.32539865,198.72,198.61,5.0349932]
[1760344981864,0.68,198.64,198.61,5.0349932]
[1760344982070,7.00539865,198.63,198.61,5.0349932]
[1760344982380,6.32539865,198.63,198.61,5.0349932]
[1760344982681,6.32539865,198.63,198.6,12.58778127]
[1760344983178,6.32539865,198.64,198.6,12.58778127]
[1760344983383,20.8,198.71,198.6,80.4]
[1760344983384,6.32539865,198.62,198.6,80.4]
[1760344983559,7.00539865,198.61,198.6,80.4]
[1760344983759,7.00539865,198.61,198.59,5.03550027]
[1760344983960,7.00539865,198.6,198.58,0.2]
[1760344984188,7.00539865,198.59,198.58,0.2]
[1760344984683,12.04089892,198.59,198.58,0.2]
[1760344985259,12.04089892,198.59,198.55,0.2]
[1760344985459,27.12539865,198.56,198.47,5.03831754]
[1760344985681,0.68,198.55,198.47,5.03831754]
[1760344985879,6.32539865,198.48,198.46,0.2]
[1760344986061,6.32539865,198.48,198.46,5.23876644]
[1760344986259,0.68,198.52,198.46,5.23876644]
[1760344986465,6.32539865,198.48,198.46,5.23876644]
[1760344987260,6.32539865,198.49,198.46,5.23876644]
[1760344988067,20.8,198.56,198.47,0.71]
[1760344988269,6.32539865,198.51,198.47,0.71]
[1760344988469,0.68,198.55,198.47,0.71]
[1760344988666,6.32539865,198.53,198.47,0.71]
[1760344989083,6.32539865,198.52,198.47,0.71]
[1760344989490,0.68,198.59,198.48,0.71]
[1760344989792,6.32539865,198.55,198.48,0.71]
[1760344990081,6.32539865,198.55,198.49,17.63313013]
[1760344990258,6.32539865,198.54,198.49,17.63313013]
[1760344990458,6.32539865,198.54,198.5,0.71]
[1760344990863,6.32539865,198.54,198.5,81.11]
[1760344991067,6.32539865,198.53,198.5,81.11]
[1760344991581,6.32539865,198.52,198.5,80.4]
[1760344991985,0.68,198.56,198.5,80.4]
[1760344992167,6.32539865,198.53,198.51,17.63135357]
[1760344992361,7.00539865,198.52,198.51,5.03752959]
[1760344992555,7.00539865,198.52,198.49,5.03786145]
[1760344992758,6.32539865,198.5,198.47,5.03830368]
[1760344992961,6.32539865,198.48,198.46,0.2]
[1760344993161,6.32539865,198.47,198.46,0.2]
[1760344993672,6.42574975,198.47,198.46,0.2]
[1760344994289,6.42574975,198.47,198.46,5.23865913]
[1760344994585,7.10574975,198.47,198.46,0.2]
[1760344995778,0.1003511,198.47,198.46,0.2]
[1760344995979,6.42574975,198.47,198.46,0.2]
[1760344996167,7.10574975,198.47,198.46,0.2]
[1760345003684,12.14429461,198.47,198.46,0.2]
[1760345004211,20.8,198.44,198.38,5.44]
[1760345004395,6.32539865,198.39,198.38,5.44]
[1760345005602,7.04539865,198.39,198.38,5.44]
[1760345006487,12.08597529,198.39,198.38,5.44]
[1760345006688,12.08597529,198.39,198.36,0.2]
[1760345006689,18.41137394,198.39,198.36,0.2]
[1760345006878,6.32539865,198.37,198.36,0.2]
[1760345007495,7.04539865,198.37,198.36,0.2]
[1760345008371,7.04539865,198.37,198.27,20.8]
[1760345008372,20.8,198.34,198.25,0.7]
[1760345008570,20.8,198.34,198.26,5.24378374]
[1760345008571,6.32539865,198.27,198.26,5.24378374]
[1760345008885,6.32539865,198.29,198.26,5.94378374]
[1760345009084,6.32539865,198.28,198.27,0.7]
[1760345009384,6.32539865,198.29,198.27,0.7]
[1760345009583,6.32539865,198.28,198.26,5.24378374]
[1760345009787,6.32539865,198.27,198.26,0.2]
[1760345012495,21.52,198.34,198.26,5.94386732]
[1760345012801,21.52,198.34,198.27,0.7]
[1760345012802,6.32539865,198.3,198.27,0.7]
[1760345013097,6.32539865,198.28,198.27,0.7]
[1760345013485,6.32539865,198.28,198.27,5.04362737]
[1760345013693,6.41851886,198.28,198.26,0.2]
[1760345013895,6.32539865,198.27,198.26,0.2]
[1760345018384,0.09312021,198.28,198.26,0.2]
[1760345018706,6.32539865,198.27,198.26,0.2]
[1760345022987,0.09312021,198.28,198.26,0.2]
[1760345023186,6.32539865,198.27,198.26,0.2]
[1760345023481,9.4726768,198.27,198.26,0.2]
[1760345023681,0.09312021,198.28,198.26,0.2]
[1760345023908,9.4726768,198.27,198.26,0.9]
[1760345024108,9.4726768,198.27,198.26,5.94388177]
[1760345025902,9.56579701,198.28,198.26,5.94388177]
[1760345026592,9.56579701,198.28,198.26,5.24388177]
[1760345026794,10.1326768,198.27,198.26,0.2]
[1760345027703,15.17630417,198.27,198.26,0.2]
[1760345030827,9.56579701,198.28,198.26,5.90388177]
[1760345031016,9.56579701,198.28,198.27,0.66]
[1760345032011,0.09312021,198.28,198.27,5.70362737]
[1760345032216,9.56579701,198.28,198.27,5.70362737]
[1760345032405,9.56579701,198.28,198.26,0.2]
[1760345032609,9.4726768,198.27,198.26,0.2]
[1760345033700,9.5828246,198.27,198.26,0.2]
[1760345034413,9.5828246,198.27,198.26,5.24388177]
[1760345035197,9.5828246,198.27,198.26,0.2]
[1760345035613,15.28645197,198.27,198.26,0.2]
[1760345035817,10.2428246,198.27,198.26,0.2]
[1760345036020,9.5828246,198.27,198.26,0.2]
[1760345037501,9.5828246,198.27,198.26,5.90388177]
[1760345037701,9.5828246,198.27,198.26,0.86]
[1760345037932,9.5828246,198.27,198.26,0.2]
[1760345039922,9.5828246,198.27,198.26,5.24388177]
[1760345040220,0.1101478,198.27,198.26,5.90388177]
[1760345040428,9.5828246,198.27,198.26,5.90388177]
[1760345040601,0.1101478,198.27,198.26,5.90388177]
[1760345041131,9.5828246,198.27,198.26,5.24388177]
[1760345041316,9.5828246,198.27,198.26,0.2]
[1760345041918,9.5828246,198.27,198.26,5.24388177]
[1760345044622,9.5828246,198.27,198.26,0.2]
[1760345045034,10.2428246,198.27,198.26,0.2]
[1760345045419,15.28645197,198.27,198.26,0.2]
[1760345046520,0.1101478,198.27,198.26,0.2]
[1760345046739,9.5828246,198.27,198.26,0.2]
[1760345051141,20.8,198.24,198.22,0.2]
[1760345051441,9.4726768,198.23,198.22,0.2]
[1760345051620,9.4726768,198.23,198.13,0.2]
[1760345051621,20.8,198.19,198.13,0.2]
[1760345051820,9.4726768,198.15,198.13,0.2]
[1760345053728,9.56519254,198.15,198.13,0.2]
[1760345054265,9.57749514,198.15,198.13,0.2]
[1760345055318,36.08417694,198.15,198.13,0.2]
[1760345055731,15.28417694,198.15,198.13,0.2]
[1760345055932,30.9449794,198.14,198.13,0.2]
[1760345056340,46.86839111,198.14,198.13,0.2]
[1760345056538,29.84643401,198.12,198.11,0.2]
[1760345056756,20.8,198.1,198.09,0.2]
[1760345056932,39.7699588,198.1,198.09,0.2]
[1760345057116,40.4299588,198.1,198.09,0.2]
[1760345057725,35.99293497,198.1,198.09,0.2]
[1760345058044,45.47791437,198.1,198.09,0.2]
[1760345059639,20.36145461,198.09,198.06,0.2]
[1760345059943,25.40991987,198.08,198.06,0.2]
[1760345060139,9.4849794,198.07,198.06,0.2]
[1760345060322,10.1449794,198.07,198.06,0.2]
[1760345060738,12.17065483,198.07,198.06,0.2]
[1760345060943,11.51065483,198.07,198.06,0.2]
[1760345061844,16.55937497,198.07,198.06,0.2]
[1760345062040,19.99999999,198.12,198.06,0.2]
[1760345062041,0.09251574,198.15,198.06,0.9]
[1760345062247,10.96899095,198.15,198.07,0.7]
[1760345062439,9.4849794,198.09,198.07,0.7]
[1760345062639,20.8,198.12,198.08,0.7]
[1760345062845,9.4849794,198.09,198.06,5.24897505]
[1760345063031,9.4849794,198.08,198.06,5.24897505]
[1760345063232,9.4849794,198.07,198.06,0.2]
[1760345064046,9.4849794,198.07,198.06,0.9]
[1760345065153,9.4849794,198.07,198.06,0.2]
[1760345066837,25.84797046,198.1,198.06,0.2]
[1760345067159,9.4849794,198.07,198.06,0.2]
[1760345071259,20.8,198.13,198.06,5.94896087]
[1760345071460,20.8,198.12,198.07,0.7]
[1760345071635,9.4849794,198.1,198.07,0.7]
[1760345071834,9.4849794,198.12,198.07,0.7]
[1760345072055,9.4849794,198.13,198.08,17.66962842]
[1760345072263,9.4849794,198.11,198.09,0.7]
[1760345073387,0.09251574,198.15,198.1,0.7]
[1760345073664,0.09190102,198.11,198.1,0.7]
[1760345074454,0.09190102,198.11,198.1,5.74795557]
[1760345075972,9.57688042,198.11,198.1,5.74795557]
[1760345076461,0.09190102,198.11,198.1,5.74795557]
[1760345078271,9.57688042,198.11,198.1,5.74795557]
[1760345078851,0.09190102,198.11,198.1,5.74795557]
[1760345079069,9.57688042,198.11,198.07,5.04872014]
[1760345079362,9.4849794,198.09,198.07,5.74872014]
[1760345079543,9.4849794,198.09,198.07,5.04872014]
[1760345079943,9.4849794,198.09,198.08,0.7]
[1760345081463,9.4849794,198.09,198.08,5.74846526]
[1760345083363,0.09190102,198.11,198.08,5.74846526]
[1760345083538,6.36958074,198.09,198.08,5.74846526]
[1760345085062,6.36958074,198.09,198.08,86.14846526]
[1760345086475,0.09190102,198.11,198.08,5.04846526]
[1760345086653,0.09190102,198.11,198.09,0.66]
[1760345087166,0.09190102,198.11,198.1,0.66]
[1760345087564,0.09190102,198.11,198.1,5.70795557]
[1760345089665,0.09190102,198.11,198.1,5.04795557]
[1760345089851,2.6387062,198.11,198.1,5.04795557]
[1760345090679,3.3387062,198.11,198.08,5.0482618]
[1760345090853,2.54680518,198.09,198.08,5.0482618]
[1760345091677,2.54680518,198.09,198.07,5.04872014]
[1760345092050,3.24680518,198.09,198.06,5.24893957]
[1760345092353,2.54680518,198.07,198.06,5.24893957]
[1760345093662,0.09468492,198.07,198.06,18.53137721]
[1760345095549,0.11104704,198.08,198.06,18.53137721]
[1760345095754,0.11104704,198.08,198.07,0.66]